bitfinex/quotes_BTCUSD_20250226
["timestamp","ask_amount","ask_price","bid_price","bid_amount"]
[1740590843818,0.229509,87143.0,87122.0,0.00541139]
[1740590844054,0.17217,87123.0,87122.0,0.00541139]
[1740590844682,0.17817,87123.0,87122.0,0.00541139]
[1740590844890,0.006,87123.0,87122.0,0.00541139]
[1740590845094,0.172168,87124.0,87122.0,0.00541139]
[1740590845295,0.005,87123.0,87122.0,0.00541139]
[1740590845929,0.005,87123.0,87122.0,0.01995224]
[1740590846148,0.009,87123.0,87122.0,0.49212424]
[1740590847432,0.172149,87134.0,87123.0,0.229558]
[1740590847638,0.10252508,87136.0,87131.0,0.01454085]
[1740590847842,0.10252508,87136.0,87130.0,0.0816]
[1740590848331,0.172154,87131.0,87130.0,0.0816]
[1740590848542,0.10252508,87136.0,87122.0,0.00541139]
[1740590848719,0.10252508,87136.0,87128.0,0.3]
[1740590848878,0.10652508,87136.0,87128.0,0.472158]
[1740590849075,0.10652508,87136.0,87128.0,0.3]
[1740590849282,0.11052508,87136.0,87130.0,0.172155]
[1740590849502,0.11052508,87136.0,87128.0,0.3]
[1740590849684,0.11052508,87136.0,87135.0,0.172146]
[1740590849880,0.11052508,87136.0,87129.0,0.229544]
[1740590849881,0.11052508,87136.0,87134.0,0.172148]
[1740590850066,0.008,87136.0,87135.0,1.672146]
[1740590850467,0.008,87136.0,87135.0,1.5]
[1740590850866,0.008,87136.0,87135.0,1.98668685]
[1740590851065,0.008,87136.0,87135.0,2.03558685]
[1740590851320,0.10252508,87145.0,87144.0,0.472128]
[1740590851520,0.10252508,87145.0,87144.0,0.48666885]
[1740590851728,0.10252508,87145.0,87144.0,0.48466885]
[1740590852578,0.33202808,87145.0,87137.0,0.3233]
[1740590852782,0.10252508,87145.0,87121.0,0.0485]
[1740590852987,0.172145,87136.0,87123.0,0.22956]
[1740590853189,0.17214,87139.0,87129.0,0.472157]
[1740590853396,0.172142,87138.0,87129.0,0.3]
[1740590853595,0.229475,87156.0,87129.0,0.3]
[1740590853797,0.172139,87139.0,87131.0,0.3]
[1740590854027,0.0004239,87159.0,87144.0,0.004]
[1740590854198,0.0004239,87159.0,87131.0,0.3]
[1740590854199,0.172132,87142.0,87134.0,0.172148]
[1740590854396,0.172131,87143.0,87134.0,1.5]
[1740590854622,0.002,87138.0,87134.0,1.5]
[1740590854979,0.0004239,87159.0,87134.0,1.5]
[1740590855220,0.172141,87138.0,87134.0,1.5]
[1740590855448,0.00130081,87158.0,87134.0,1.5]
[1740590855655,0.172137,87140.0,87134.0,1.5]
[1740590855858,0.002,87138.0,87134.0,1.5]
[1740590856768,0.172142,87137.0,87128.0,0.01454085]
[1740590856984,0.229497,87148.0,87126.0,0.01454085]
[1740590857179,0.0004239,87159.0,87128.0,0.31454085]
[1740590857407,0.003,87140.0,87128.0,0.31454085]
[1740590857542,0.172145,87136.0,87128.0,0.31454085]
[1740590857932,0.002,87137.0,87128.0,0.31454085]
[1740590858154,0.10252508,87152.0,87124.0,0.3]
[1740590858397,0.172148,87134.0,87128.0,0.001]
[1740590858627,0.229505,87144.0,87124.0,0.3]
[1740590858873,0.17215,87134.0,87124.0,0.3]
[1740590859098,0.33200908,87152.0,87125.0,0.01454085]
[1740590859099,0.001,87136.0,87125.0,0.01454085]
[1740590859578,0.001,87136.0,87133.0,0.31454085]
[1740590859788,0.001,87136.0,87133.0,0.01454085]
[1740590860036,0.001,87136.0,87135.0,1.5]
[1740590860345,0.229492,87149.0,87135.0,1.5]
[1740590860577,0.229508,87143.0,87132.0,0.31454085]
[1740590860781,0.229508,87143.0,87132.0,0.01454085]
[1740590861011,0.229498,87147.0,87132.0,0.01454085]
[1740590861211,0.172132,87143.0,87134.0,0.01454085]
[1740590861587,0.172132,87143.0,87135.0,1.5]
[1740590861795,0.001,87136.0,87135.0,1.5]
[1740590862020,0.001,87136.0,87135.0,1.98668685]
[1740590862220,0.10252508,87150.0,87135.0,1.98668685]
[1740590862221,0.10252508,87150.0,87149.0,0.172119]
[1740590862426,0.10252508,87150.0,87139.0,0.3233]
[1740590862633,0.10252508,87149.0,87142.0,0.31454085]
[1740590862832,0.172122,87148.0,87142.0,0.02574085]
[1740590863002,0.10252508,87149.0,87143.0,1.5]
[1740590863350,0.10252508,87149.0,87139.0,0.3233]
[1740590863351,0.172136,87140.0,87139.0,0.3233]
[1740590863564,0.172136,87140.0,87139.0,0.32371139]
[1740590863920,0.000424,87145.0,87139.0,0.32371139]
[1740590864106,0.004,87143.0,87139.0,0.32371139]
[1740590864509,0.000424,87145.0,87139.0,0.32371139]
[1740590864714,0.172136,87140.0,87139.0,0.32371139]
[1740590866300,0.172136,87140.0,87139.0,0.00041139]
[1740590867459,0.235394,87140.0,87139.0,0.00041139]
[1740590867778,0.17225427,87140.0,87139.0,0.00041139]
[1740590868116,0.17384906,87140.0,87139.0,0.00041139]
[1740590868482,0.17684906,87140.0,87139.0,0.00041139]
[1740590868828,0.17384906,87140.0,87139.0,0.00041139]
[1740590868960,0.17884906,87140.0,87139.0,0.00141139]
[1740590869565,0.177136,87140.0,87139.0,0.00141139]
[1740590870491,0.172136,87140.0,87139.0,0.00041139]
[1740590871108,0.177136,87140.0,87139.0,0.00041139]
[1740590871546,0.182136,87140.0,87139.0,0.00041139]
[1740590871985,0.172136,87140.0,87139.0,0.00041139]
[1740590872196,0.000424,87145.0,87139.0,0.00041139]
[1740590872424,0.177136,87140.0,87139.0,0.00041139]
[1740590872842,0.005,87140.0,87139.0,0.00041139]
[1740590873287,0.177136,87140.0,87139.0,0.00041139]
[1740590873499,0.000424,87145.0,87139.0,0.00041139]
[1740590873736,0.172136,87140.0,87139.0,0.00041139]
[1740590873949,0.176136,87140.0,87139.0,0.00041139]
[1740590874336,0.177136,87140.0,87139.0,0.00041139]
[1740590876292,0.177136,87140.0,87139.0,0.17254939]
[1740590876293,0.005,87140.0,87139.0,0.17254939]
[1740590876508,0.005,87140.0,87139.0,0.01495224]
[1740590876715,0.005,87140.0,87139.0,0.00125939]
[1740590877751,0.000424,87145.0,87139.0,0.00125939]
[1740590878053,0.000424,87145.0,87143.0,0.17213]
[1740590878288,0.000424,87145.0,87144.0,0.172128]
[1740590878928,0.000424,87145.0,87144.0,0.18666885]
[1740590880729,0.000424,87145.0,87144.0,0.48666885]
[1740590881199,0.000424,87145.0,87144.0,0.48766885]
[1740590881452,0.000424,87145.0,87144.0,0.31554085]
[1740590881673,0.000424,87145.0,87144.0,0.48666885]
[1740590881926,0.000424,87145.0,87144.0,1.81454085]
[1740590882147,0.000424,87145.0,87139.0,0.00125939]
[1740590882374,0.172136,87140.0,87139.0,0.00125939]
[1740590883403,0.229511,87142.0,87139.0,0.00125939]
[1740590883650,0.10266719,87176.0,87140.0,0.01454085]
[1740590883934,0.10266719,87176.0,87141.0,0.172132]
[1740590884173,0.00135942,87175.0,87142.0,0.01454085]
[1740590884411,0.1721,87159.0,87153.0,0.172111]
[1740590884620,0.172107,87155.0,87143.0,0.01454085]
[1740590884773,0.10266719,87176.0,87143.0,0.31454085]
[1740590884975,0.10266719,87176.0,87144.0,0.01454085]
[1740590885182,0.10266719,87176.0,87146.0,0.01454085]
[1740590885733,0.172087,87165.0,87146.0,0.01454085]
[1740590885932,0.10266719,87176.0,87150.0,0.01454085]
[1740590886095,0.10266719,87159.0,87153.0,0.172109]
[1740590886295,0.10266719,87159.0,87152.0,0.01454085]
[1740590886494,0.172104,87157.0,87152.0,0.01454085]
[1740590886698,0.229468,87158.0,87152.0,0.01454085]
[1740590886910,0.172105,87156.0,87152.0,0.01454085]
[1740590887524,0.10366719,87159.0,87154.0,0.01454085]
[1740590887727,0.10366719,87159.0,87158.0,0.53384185]
[1740590888095,0.10266719,87159.0,87158.0,0.53384185]
[1740590888227,0.172084,87167.0,87162.0,0.172092]
[1740590888426,0.10266719,87168.0,87161.0,0.01454085]
[1740590888629,0.10266719,87168.0,87158.0,1.8472]
[1740590888630,0.10266719,87168.0,87163.0,0.172091]
[1740590888857,0.27474819,87168.0,87163.0,0.172091]
[1740590889080,0.172086,87166.0,87159.0,0.01454085]
[1740590889280,0.172086,87166.0,87161.0,0.01454085]
[1740590889430,0.172086,87166.0,87158.0,2.076666]
[1740590889431,0.172099,87159.0,87158.0,1.5472]
[1740590890015,0.10266719,87168.0,87163.0,0.003]
[1740590890231,0.172089,87164.0,87163.0,0.003]
[1740590890419,0.172124,87146.0,87145.0,0.0455]
[1740590891132,0.32115581,87173.0,87145.0,0.0455]
[1740590891334,0.229429,87173.0,87146.0,0.01454085]
[1740590891541,0.0759,87183.0,87146.0,0.01454085]
[1740590891688,0.172101,87158.0,87146.0,0.01454085]
[1740590891891,0.229438,87170.0,87155.0,0.172106]
[1740590892262,0.10266719,87167.0,87149.0,0.31454085]
[1740590892444,0.172089,87164.0,87163.0,0.001]
[1740590892621,0.10266719,87167.0,87145.0,0.0455]
[1740590892820,0.10266719,87167.0,87109.0,0.005]
[1740590892821,0.172136,87140.0,87130.0,0.049]
[1740590893638,0.00179927,87148.0,87130.0,0.049]
[1740590893843,0.02,87179.0,87133.0,0.3]
[1740590893844,0.10266719,87167.0,87133.0,0.3]
[1740590894049,0.172136,87140.0,87139.0,0.00725939]
[1740590894272,0.172136,87140.0,87139.0,1.50125939]
[1740590895677,0.173136,87140.0,87139.0,1.50125939]
[1740590896176,0.173136,87140.0,87139.0,1.50325939]
[1740590897131,0.173136,87140.0,87139.0,0.00325939]
[1740590898078,0.173136,87140.0,87139.0,3.9e-07]
[1740590898229,0.17504244,87140.0,87139.0,3.9e-07]
[1740590898434,0.18571305,87140.0,87139.0,3.9e-07]
[1740590898646,0.57699204,87140.0,87139.0,3.9e-07]
[1740590898855,0.17217,87123.0,87122.0,1e-06]
[1740590899307,0.172192,87112.0,87111.0,6e-07]
[1740590899540,0.172196,87110.0,87109.0,6e-07]
[1740590899909,0.17410244,87110.0,87109.0,6e-07]
[1740590900451,0.18477305,87110.0,87109.0,6e-07]
[1740590900654,0.18477305,87110.0,87109.0,8.55e-05]
[1740590901910,0.18836721,87110.0,87109.0,8.55e-05]
[1740590902116,0.18536721,87110.0,87109.0,8.55e-05]
[1740590902402,0.18936721,87110.0,87109.0,5e-07]
[1740590902606,0.28835251,87110.0,87108.0,1e-07]
[1740590902810,0.172213,87101.0,87100.0,5e-07]
[1740590903020,0.172213,87101.0,87100.0,0.0001241]
[1740590903228,0.26675246,87101.0,87100.0,0.0001241]
[1740590903432,0.172213,87101.0,87100.0,0.0001241]
[1740590904480,0.00197469,87124.0,87100.0,0.0001241]
[1740590904698,0.172213,87101.0,87100.0,0.0001241]
[1740590905553,0.17418769,87101.0,87100.0,0.0001241]
[1740590905979,0.17718769,87101.0,87100.0,0.0001241]
[1740590906181,0.172213,87101.0,87100.0,0.0001241]
[1740590906396,0.174213,87101.0,87100.0,0.0001241]
[1740590906599,0.17623165,87101.0,87100.0,0.0001241]
[1740590906810,0.18749642,87101.0,87100.0,0.0001241]
[1740590907211,0.18549642,87101.0,87100.0,0.0001241]
[1740590907843,0.172217,87099.0,87098.0,9e-07]
[1740590908047,0.472233,87091.0,87090.0,7e-07]
[1740590908267,0.472233,87091.0,87090.0,0.00012423]
[1740590908268,0.62942966,87091.0,87090.0,0.00012423]
[1740590908467,0.56719864,87091.0,87090.0,0.00012423]
[1740590909248,0.55565165,87091.0,87090.0,0.00012423]
[1740590909545,0.477233,87091.0,87090.0,0.00012423]
[1740590909715,0.484233,87091.0,87090.0,0.00012423]
[1740590910327,0.179233,87091.0,87090.0,0.00012423]
[1740590910863,0.185233,87091.0,87090.0,0.00012423]
[1740590911637,0.2731467,87091.0,87090.0,0.00012423]
[1740590912401,0.2731467,87091.0,87090.0,2.3e-07]
[1740590912402,0.2601467,87091.0,87090.0,2.3e-07]
[1740590912602,0.18877999,87091.0,87090.0,2.3e-07]
[1740590912807,0.18377999,87091.0,87090.0,2.3e-07]
[1740590913214,0.18877999,87091.0,87090.0,2.3e-07]
[1740590913344,0.18377999,87091.0,87090.0,2.3e-07]
[1740590913778,0.19077999,87091.0,87090.0,2.3e-07]
[1740590914564,0.179233,87091.0,87090.0,2.3e-07]
[1740590915165,0.179233,87091.0,87077.0,0.000847]
[1740590915166,0.172247,87084.0,87083.0,0.00400023]
[1740590917051,0.175247,87084.0,87083.0,0.00400023]
[1740590917255,0.172247,87084.0,87083.0,0.00400023]
[1740590918066,0.177247,87084.0,87083.0,0.00400023]
[1740590918674,0.176247,87084.0,87083.0,0.00400023]
[1740590918906,0.179247,87084.0,87083.0,0.00500023]
[1740590919304,0.174247,87084.0,87083.0,0.00400023]
[1740590919672,0.172247,87084.0,87083.0,0.00400023]
[1740590919869,0.173247,87084.0,87083.0,0.00400023]
[1740590920428,0.17531371,87084.0,87083.0,0.00400023]
[1740590920584,0.17631371,87084.0,87083.0,0.00400023]
[1740590920783,0.18131371,87084.0,87083.0,0.00400023]
[1740590921308,0.172267,87074.0,87073.0,6.3e-07]
[1740590921508,0.172273,87071.0,87070.0,3e-08]
[1740590921914,0.17435169,87071.0,87070.0,3e-08]
[1740590923283,0.18035169,87071.0,87070.0,3e-08]
[1740590923761,0.17435169,87071.0,87070.0,3e-08]
[1740590923971,0.178273,87071.0,87070.0,3e-08]
[1740590924417,0.184273,87071.0,87070.0,3e-08]
[1740590924623,0.18635169,87071.0,87070.0,3e-08]
[1740590924825,0.27494319,87071.0,87070.0,3e-08]
[1740590925245,0.26794319,87071.0,87070.0,3e-08]
[1740590925449,0.27494319,87071.0,87070.0,3e-08]
[1740590925665,0.19335169,87071.0,87070.0,3e-08]
[1740590925868,0.18135169,87071.0,87070.0,3e-08]
[1740590926071,0.17835169,87071.0,87070.0,3e-08]
[1740590926261,0.18535169,87071.0,87070.0,3e-08]
[1740590926600,0.19135169,87071.0,87070.0,3e-08]
[1740590927003,0.194273,87071.0,87070.0,3e-08]
[1740590927226,0.189273,87071.0,87070.0,3e-08]
[1740590927629,0.189273,87071.0,87058.0,8.3e-07]
[1740590927630,0.172296,87059.0,87058.0,8.3e-07]
[1740590927804,0.17438253,87059.0,87058.0,0.00012452]
[1740590929017,0.179296,87059.0,87058.0,0.00012452]
[1740590930609,0.174296,87059.0,87058.0,0.00012452]
[1740590930837,0.172296,87059.0,87058.0,0.00012452]
[1740590931277,0.10161788,87083.0,87059.0,0.124]
[1740590931475,0.10161788,87083.0,87072.0,0.596771]
[1740590931778,0.10161788,87083.0,87072.0,0.39084085]
[1740590932003,0.10161788,87083.0,87082.0,0.47979185]
[1740590932177,0.27386688,87083.0,87082.0,0.3]
[1740590932413,0.10161788,87083.0,87082.0,0.472251]
[1740590932704,0.10161788,87083.0,87082.0,0.53649185]
[1740590932903,0.10161788,87083.0,87082.0,2.03649185]
[1740590933496,0.10161788,87083.0,87082.0,2.03549185]
[1740590933857,0.10161788,87083.0,87082.0,2.03449185]
[1740590934058,0.10161788,87083.0,87082.0,1.86224085]
[1740590934259,0.27486688,87083.0,87082.0,1.8477]
[1740590934462,0.27386688,87083.0,87082.0,0.3477]
[1740590934657,0.27486688,87083.0,87082.0,0.3477]
[1740590935233,0.172249,87083.0,87082.0,0.3477]
[1740590935436,0.173249,87083.0,87082.0,0.3477]
[1740590935642,0.001,87083.0,87082.0,0.3477]
[1740590935845,0.001,87083.0,87082.0,0.519951]
[1740590936061,0.001,87083.0,87082.0,2.019951]
[1740590936273,0.002,87083.0,87082.0,2.019951]
[1740590936540,0.001,87083.0,87082.0,2.019951]
[1740590936743,0.001,87083.0,87082.0,2.03449185]
[1740590936947,0.000424,87140.0,87090.0,0.521335]
[1740590936948,0.22956,87123.0,87090.0,0.521335]
[1740590937166,0.3283,87135.0,87096.0,0.01454085]
[1740590937365,0.172199,87109.0,87102.0,0.17121]
[1740590937568,0.229571,87119.0,87101.0,0.01454085]
[1740590937774,0.3283,87135.0,87101.0,0.01454085]
[1740590937775,0.229557,87124.0,87102.0,1.5]
[1740590937980,0.362827,87135.0,87102.0,1.5]
[1740590938182,0.362827,87135.0,87103.0,0.172209]
[1740590938183,0.10177475,87110.0,87103.0,0.172209]
[1740590938384,0.10177475,87110.0,87102.0,1.5]
[1740590938385,0.10177475,87110.0,87102.0,0.3]
[1740590938591,0.10177475,87110.0,87109.0,0.172198]
[1740590938796,0.10177475,87110.0,87104.0,0.0454]
[1740590938797,0.172205,87105.0,87104.0,0.0454]
[1740590939576,0.33136975,87110.0,87104.0,0.0454]
[1740590939577,0.10177475,87110.0,87105.0,0.229607]
[1740590939786,0.10177475,87110.0,87104.0,0.0454]
[1740590939986,0.27397175,87110.0,87104.0,0.0454]
[1740590940192,0.10177475,87110.0,87108.0,0.172198]
[1740590940391,0.229539,87131.0,87104.0,0.0464]
[1740590940739,0.229547,87128.0,87105.0,0.0771]
[1740590940998,0.000424,87140.0,87105.0,0.0761]
[1740590941196,0.00209491,87120.0,87105.0,0.3761]
[1740590941403,0.000424,87140.0,87105.0,0.0761]
[1740590941612,0.000424,87140.0,87106.0,0.00160704]
[1740590941819,0.000424,87140.0,87120.0,0.51442681]
[1740590942032,0.000424,87140.0,87139.0,0.597838]
[1740590942239,0.000424,87140.0,87139.0,0.93967885]
[1740590942418,0.000424,87140.0,87139.0,0.76754085]
[1740590942913,0.17256,87140.0,87139.0,2.253]
[1740590943326,0.17256,87140.0,87139.0,1.953]
[1740590943548,0.172162,87127.0,87126.0,0.0498]
[1740590943747,0.172162,87127.0,87126.0,0.3488]
[1740590943966,0.172162,87127.0,87109.0,0.229597]
[1740590943967,0.00959466,87139.0,87112.0,0.3273]
[1740590944183,0.172198,87109.0,87103.0,0.0769]
[1740590944397,0.172207,87104.0,87103.0,0.07702339]
[1740590944603,0.172207,87104.0,87103.0,0.00012339]
[1740590945026,0.379226,87140.0,87103.0,0.00012339]
[1740590945231,0.172207,87104.0,87103.0,0.00012339]
[1740590945640,0.003,87127.0,87103.0,0.00012339]
[1740590945843,0.172201,87108.0,87103.0,0.00012339]
[1740590946259,0.003,87127.0,87103.0,0.00012339]
[1740590946700,0.176207,87104.0,87103.0,0.00012339]
[1740590947114,0.172207,87104.0,87103.0,0.00012339]
[1740590947299,0.174207,87104.0,87103.0,0.00012339]
[1740590947555,0.172207,87104.0,87103.0,0.00112339]
[1740590947978,0.172207,87104.0,87103.0,0.00312339]
[1740590948129,0.172207,87104.0,87103.0,0.00012339]
[1740590948338,0.172207,87104.0,87103.0,0.00312339]
[1740590948612,0.172207,87104.0,87103.0,0.00012339]
[1740590949764,0.176207,87104.0,87103.0,0.00012339]
[1740590950221,0.172207,87104.0,87103.0,0.00012339]
[1740590950735,0.176207,87104.0,87103.0,0.00012339]
[1740590950877,0.180207,87104.0,87103.0,0.00012339]
[1740590951079,0.004,87104.0,87103.0,0.00012339]
[1740590951279,0.176207,87104.0,87103.0,0.00012339]
[1740590951536,0.008,87104.0,87103.0,0.00012339]
[1740590951699,0.180207,87104.0,87103.0,0.00012339]
[1740590952726,0.176207,87104.0,87103.0,0.00012339]
[1740590953555,0.172207,87104.0,87103.0,0.00012339]
[1740590954141,0.175207,87104.0,87103.0,0.00012339]
[1740590954474,0.177207,87104.0,87103.0,0.00012339]
[1740590954669,0.180207,87104.0,87103.0,0.00012339]
[1740590954886,0.175207,87104.0,87103.0,0.00012339]
[1740590955087,0.175207,87104.0,87103.0,3.9e-07]
[1740590955327,0.17934339,87104.0,87103.0,3.9e-07]
[1740590955508,0.51688239,87104.0,87103.0,3.9e-07]
[1740590956047,0.51988239,87104.0,87103.0,3.9e-07]
[1740590956456,0.51488239,87104.0,87103.0,3.9e-07]
[1740590956656,0.51988239,87104.0,87103.0,3.9e-07]
[1740590957301,0.04167539,87104.0,87066.0,0.31404124]
[1740590957505,0.229613,87103.0,87073.0,0.01454085]
[1740590957706,0.172252,87082.0,87071.0,0.01454085]
[1740590957909,0.0001235,87104.0,87081.0,1.5]
[1740590958108,0.172251,87082.0,87081.0,1.5]
[1740590958938,0.172245,87085.0,87081.0,1.5]
[1740590959149,0.172249,87083.0,87082.0,0.0782]
[1740590959361,0.172249,87083.0,87082.0,0.0772]
[1740590959569,0.229592,87112.0,87082.0,0.3772]
[1740590959777,0.172225,87096.0,87086.0,0.01454085]
[1740590959983,0.229615,87102.0,87086.0,0.01454085]
[1740590960187,0.172234,87091.0,87086.0,0.01454085]
[1740590960505,0.172222,87097.0,87088.0,0.172238]
[1740590960627,0.401843,87099.0,87089.0,0.172236]
[1740590960827,0.17222,87098.0,87089.0,0.172236]
[1740590961139,0.0071235,87104.0,87086.0,0.01454085]
[1740590961337,0.229613,87103.0,87086.0,0.01454085]
[1740590962045,0.001,87098.0,87086.0,0.01454085]
[1740590962256,0.001,87091.0,87086.0,0.01454085]
[1740590962781,0.172241,87087.0,87086.0,0.01454085]
[1740590962972,0.172243,87086.0,87085.0,0.0452]
[1740590964010,0.172249,87083.0,87082.0,0.0004242]
[1740590964410,0.003,87103.0,87082.0,0.0004242]
[1740590964562,0.229594,87111.0,87082.0,0.0004242]
[1740590964769,0.08942864,87126.0,87082.0,0.0004242]
[1740590964770,0.229561,87123.0,87089.0,0.01454085]
[1740590965123,0.08942864,87126.0,87103.0,0.18674985]
[1740590965538,0.08942864,87126.0,87103.0,1.80654985]
[1740590965681,0.2304002,87127.0,87103.0,1.80654985]
[1740590966082,0.0008482,87127.0,87103.0,2.10654985]
[1740590966795,0.0008482,87127.0,87126.0,0.4216]
[1740590966998,0.0008482,87127.0,87126.0,0.593764]
[1740590967627,0.0008482,87127.0,87126.0,0.60730485]
[1740590968031,0.0018482,87127.0,87126.0,0.60730485]
[1740590968401,0.0018482,87127.0,87126.0,0.60930485]
[1740590968673,0.0018482,87127.0,87126.0,0.60730485]
[1740590968882,0.0028482,87127.0,87126.0,0.60730485]
[1740590969003,0.0038482,87127.0,87126.0,0.60930485]
[1740590969205,0.000424,87140.0,87139.0,0.18667885]
[1740590969438,0.00054762,87140.0,87139.0,0.32937885]
[1740590969634,0.00054762,87140.0,87139.0,0.62937885]
[1740590970284,0.00054762,87140.0,87139.0,0.62837885]
[1740590970489,0.10202462,87150.0,87139.0,0.62837885]
[1740590970490,0.10202462,87150.0,87149.0,0.472119]
[1740590970711,0.10202462,87150.0,87149.0,0.53535985]
[1740590971060,0.10697146,87174.0,87150.0,0.31354085]
[1740590971284,0.0004119,87171.0,87152.0,0.01354085]
[1740590971495,0.0004119,87171.0,87166.0,0.083]
[1740590971914,0.229441,87169.0,87166.0,0.081]
[1740590972115,0.2298459,87171.0,87166.0,0.081]
[1740590972324,0.172079,87170.0,87166.0,0.081]
[1740590972549,0.172083,87167.0,87166.0,0.081]
[1740590972784,0.0004119,87171.0,87166.0,0.081]
[1740590973011,0.0004119,87171.0,87166.0,1.581]
[1740590973188,0.172083,87167.0,87166.0,1.581]
[1740590973631,0.0014119,87171.0,87166.0,1.581]
[1740590973850,0.0014119,87171.0,87170.0,0.472077]
[1740590974052,0.0014119,87171.0,87170.0,0.53181785]
[1740590974502,0.0014119,87171.0,87170.0,2.03181785]
[1740590974916,0.0008488,87198.0,87178.0,0.56670185]
[1740590975142,0.0008488,87198.0,87178.0,0.61610185]
[1740590975143,0.00582192,87179.0,87178.0,0.61610185]
[1740590975730,0.00582192,87179.0,87178.0,2.11610185]
[1740590976344,0.00572457,87179.0,87178.0,2.11610185]
[1740590976549,0.00572457,87179.0,87178.0,2.11510185]
[1740590977181,0.00572457,87179.0,87178.0,2.81510185]
[1740590977384,0.00572457,87179.0,87178.0,2.82210185]
[1740590977385,0.00672457,87179.0,87178.0,2.82210185]
[1740590978551,0.00672457,87179.0,87178.0,2.95584938]
[1740590979080,0.00197192,87179.0,87178.0,2.95584938]
[1740590979251,0.0008488,87198.0,87188.0,0.53608285]
[1740590979448,0.0008488,87198.0,87188.0,0.62788285]
[1740590980073,0.0008488,87198.0,87188.0,2.12788285]
[1740590980444,0.0014237,87189.0,87188.0,2.13488285]
[1740590981106,0.0014237,87189.0,87188.0,2.12388285]
[1740590984244,0.0014237,87189.0,87188.0,2.15858079]
[1740590985607,0.0014237,87189.0,87188.0,2.85858079]
[1740590987047,0.0014237,87189.0,87188.0,2.65184085]
[1740590987538,0.0014237,87189.0,87188.0,2.82388285]
[1740590987941,0.1734637,87189.0,87188.0,2.207]
[1740590988232,0.1734637,87189.0,87188.0,1.507]
[1740590988441,0.1734637,87189.0,87188.0,1.807]
[1740590988854,0.1724637,87189.0,87188.0,1.807]
[1740590988982,0.1724637,87189.0,87188.0,1.808]
[1740590989615,0.0004237,87189.0,87188.0,1.81454085]
[1740590989961,0.0004237,87189.0,87188.0,1.99158285]
[1740590990137,0.0004237,87189.0,87188.0,1.99858285]
[1740590990312,0.0004237,87189.0,87188.0,2.18023038]
[1740590990490,0.0004237,87189.0,87188.0,2.18423038]
[1740590990691,0.0004237,87189.0,87188.0,2.18023038]
[1740590990935,0.0004237,87189.0,87188.0,2.25693038]
[1740590991165,0.0004237,87189.0,87188.0,2.95693038]
[1740590991367,1e-07,87192.0,87191.0,0.492036]
[1740590991549,1e-07,87192.0,87191.0,0.66922438]
[1740590991778,1e-07,87192.0,87191.0,0.66822538]
[1740590992216,1e-07,87192.0,87191.0,2.86822538]
[1740590992344,0.0008488,87198.0,87197.0,0.191025]
[1740590992551,0.0008488,87198.0,87197.0,0.62091825]
[1740590992749,0.0008488,87198.0,87197.0,0.61831338]
[1740590993155,0.0008488,87198.0,87197.0,2.81831338]
[1740590993584,0.0018488,87198.0,87197.0,2.81831338]
[1740590993976,0.0018488,87198.0,87197.0,2.82531338]
[1740590997235,0.0018488,87198.0,87197.0,2.80731238]
[1740590997431,0.0018488,87198.0,87197.0,2.82531338]
[1740590997632,0.0018488,87198.0,87197.0,2.679024]
[1740590997832,0.0018488,87198.0,87197.0,2.507]
[1740590998452,0.1738708,87198.0,87197.0,2.207]
[1740590998653,0.0008488,87198.0,87197.0,2.20304]
[1740590998880,0.0008488,87198.0,87197.0,2.21958085]
[1740590999101,0.0018488,87198.0,87197.0,1.681024]
[1740590999415,0.0008488,87198.0,87197.0,1.82154085]
[1740590999843,0.0018488,87198.0,87197.0,1.82354085]
[1740591000356,0.0018488,87198.0,87197.0,1.99556485]
[1740591000557,0.0018488,87198.0,87197.0,1.98856485]
[1740591000771,0.0018488,87198.0,87197.0,2.15581238]
[1740591001003,0.0018488,87198.0,87197.0,2.25321338]
[1740591001211,0.0008488,87198.0,87197.0,2.11946485]
[1740591001412,0.0018488,87198.0,87197.0,2.82046485]
[1740591001531,0.0018488,87198.0,87197.0,2.82442485]
[1740591002074,0.0008488,87198.0,87197.0,2.83042485]
[1740591002284,0.0008488,87215.0,87198.0,0.31454085]
[1740591002485,0.00012347,87209.0,87204.0,0.3]
[1740591002641,0.00012347,87209.0,87205.0,0.01454085]
[1740591003042,0.00012347,87209.0,87208.0,1.5]
[1740591003258,0.00012347,87209.0,87208.0,1.8]
[1740591003259,0.17212347,87209.0,87208.0,1.8]
[1740591003460,0.17212347,87209.0,87208.0,1.5]
[1740591003689,0.17412247,87209.0,87208.0,1.5]
[1740591004798,0.17412247,87209.0,87208.0,1.505]
[1740591005204,0.17412247,87209.0,87208.0,1.508]
[1740591005798,0.00012347,87209.0,87208.0,1.99454285]
[1740591006026,0.0008488,87215.0,87214.0,0.53423085]
[1740591006184,0.0008488,87215.0,87214.0,0.66597938]
[1740591006385,0.0008488,87215.0,87214.0,0.67693938]
[1740591006829,0.0008488,87215.0,87214.0,2.17693938]
[1740591007402,0.0008488,87215.0,87214.0,2.18393938]
[1740591007613,0.0008488,87215.0,87214.0,2.17693938]
[1740591007842,0.0008488,87215.0,87214.0,2.17297938]
[1740591008049,0.0008488,87215.0,87214.0,2.04123085]
[1740591008397,0.0008488,87215.0,87214.0,2.05219085]
[1740591008746,0.0008488,87215.0,87214.0,2.04519085]
[1740591009098,0.0008488,87215.0,87214.0,2.05219085]
[1740591009793,0.0008488,87215.0,87214.0,2.17693938]
[1740591010355,0.0008488,87215.0,87214.0,2.18393938]
[1740591010897,0.0018488,87215.0,87214.0,2.2826946]
[1740591011480,0.0008488,87215.0,87214.0,2.2826946]
[1740591011890,0.0018488,87215.0,87214.0,2.2826946]
[1740591012120,0.0018488,87215.0,87214.0,2.2896946]
[1740591012296,8e-07,87215.0,87214.0,2.2896946]
[1740591012507,0.000424,87228.0,87227.0,0.471965]
[1740591012682,1e-06,87243.0,87242.0,0.60567685]
[1740591012894,0.00485,87256.0,87255.0,0.471909]
[1740591013111,0.00485,87256.0,87255.0,0.60365753]
[1740591013353,0.0049735,87256.0,87255.0,2.13819838]
[1740591013567,0.00485,87269.0,87258.0,0.489905]
[1740591013722,0.00125982,87259.0,87258.0,0.63819338]
[1740591013923,8.2e-07,87269.0,87268.0,0.189885]
[1740591014122,8.2e-07,87269.0,87268.0,0.63073698]